[Event "7th Sharjah Challengers 2024"]
[Site "Sharjah"]
[Date "2024.05.17"]
[Round "4.8"]
[White "Movahed, Sina"]
[Black "Kanyamarala, Tarun"]
[Result "0-1"]
[ECO "C00"]
[WhiteElo "2464"]
[BlackElo "2302"]
[Annotator "TA"]
[PlyCount "86"]
[EventDate "2024.05.13"]
[EventType "swiss"]
[EventCountry "UAE"]
[SourceTitle "playchess.com"]
[Source "ChessBase"]
[SourceQuality "1"]
[TimeControl "5400+30"]

{[%evp 20,86,-45,-47,-37,-64,-56,-60,-61,-61,-61,-77,-70,-83,-54,-73,-52,-55,-55,-56,-52,-59,-10,-14,0,-37,-45,-44,0,0,0,-172,-74,-101,-102,-108,-102,-93,-75,-180,-172,-180,-194,-177,-143,-239,-222,-205,-188,-192,-185,-758,-751,-1063,-1034,-972,-1058,-1071,-1053,-1500,-1531,-1543,-1536,-2763,-2370,-3767,-2112,-5098,-3384]} 1. Nf3 {[%emt 0:01:41]} d5 {[%emt 0:00:31]} 2. g3 {[%emt 0:00:08]} Nf6 {[%emt 0:00:34]} 3. Bg2 {[%emt 0:00:13]} c5 {[%emt 0:01:00]} 4. O-O {[%emt 0:01:32]} e6 {[%emt 0:00:18]} 5. d3 {[%emt 0:01:01]} Be7 {[%emt 0:00:29]} 6. Nbd2 {[%emt 0:00:35]} O-O {[%emt 0:00:27]} 7. e4 {[%emt 0:00:03]} Nc6 {[%emt 0:00:11]} 8. Re1 {[%emt 0:00:35]} Qc7 {[%emt 0:00:24]} 9. Qe2 {[%emt 0:01:41]} b5 {[%emt 0:04:59]} 10. e5 {[%emt 0:03:52]} Nd7 {[%emt 0:00:43]} 11. h4 {[%emt 0:00:10]} Bb7 {[%emt 0:01:34]} 12. h5 {[%emt 0:02:45][%cal Oh5h6]} h6 {[%emt 0:00:22] Black is more active.} 13. Nf1 {[%emt 0:00:38]} Rfc8 {[%emt 0:00:44] Black is slightly better.} 14. Bf4 {[%emt 0:00:40]} Qd8 {[%emt 0:00:37]} 15. N1h2 {[%emt 0:03:02]} a5 {[%emt 0:00:43]} 16. a4 {[%emt 0:09:00]} bxa4 {[%emt 0:01:24]} 17. Ng4 {[%emt 0:01:04][%cal Oe2d2]} Bf8 {[%emt 0:02:24]} 18. Rxa4 {[%emt 0:08:13]} Nb6 {[%emt 0:04:57]} 19. Raa1 {[%emt 0:00:55]} a4 {[%emt 0:04:56]} 20. c3 {[%emt 0:13:45][%cal Bc2c3,Bc3c4][%mdl 32]} Nd7 {[%emt 0:08:17]} (20... Na5 $15) 21. Qc2 {[%emt 0:03:53]} Ba6 {[%emt 0:08:47]} 22. Red1 {[%emt 0:05:49]} (22. Rxa4 $2 Bxd3 23. Qd1 Rxa4 24. Qxa4 c4 $17) (22. Qd2 $5) 22... Bb5 {[%emt 0:04:11]} 23. c4 {[%emt 0:08:20]} Nd4 {[%emt 0:07:31]} 24. Nxd4 {[%emt 0:01:06]} cxd4 {[%emt 0:00:29]} 25. Rac1 $2 {[%emt 0:07:49] [#]} (25. Qe2 $11) 25... Bc6 {[%emt 0:04:28]} ({And not} 25... dxc4 26. Bxa8 Rxa8 27. dxc4 $16) (25... a3 $1 $19 {...Ba4 would now be deadly.} 26. bxa3 Ba4) 26. cxd5 {[%emt 0:03:30]} Bxd5 {[%emt 0:00:22]} 27. Qe2 {[%emt 0:00:07] And now Rxc8 would win.} Bxg2 {[%emt 0:04:24]} 28. Kxg2 {[%emt 0:00:02]} Qb6 {[%emt 0:03:30]} 29. Kh2 {[%emt 0:02:42]} (29. Rxc8 $17 {was worth a try.} Rxc8 30. Nh2) 29... Rab8 $19 {[%emt 0:01:31]} 30. Rxc8 {[%emt 0:05:18]} Rxc8 {[%emt 0:00:06]} 31. Rd2 {[%emt 0:00:48]} Qb7 {[%emt 0:02:23]} 32. Qd1 {[%emt 0:05:27]} (32. f3 $17) 32... Qb3 {[%emt 0:06:44] [#] Threatens to win with ...Bb4.} 33. Qe2 {[%emt 0:01:01]} Bb4 {[%emt 0:05:01]} 34. Rd1 {[%emt 0:01:23]} Rc2 $36 {[%emt 0:03:49][%mdl 2048] Keeping White busy.} 35. Qf1 {[%emt 0:05:05]} (35. Qe4) 35... Rxb2 {[%emt 0:00:55] Hoping for ...a3. Black is clearly winning.} 36. Bxh6 {[%emt 0:01:09]} gxh6 {[%emt 0:00:52]} 37. Nxh6+ {[%emt 0:00:02]} Kg7 {[%emt 0:01:52]} 38. Ng4 {[%emt 0:00:02]} Qd5 {[%emt 0:02:07]} 39. h6+ {[%emt 0:00:55]} Kh8 {[%emt 0:03:42]} 40. Rc1 {[%emt 0:00:53]} Bc3 {[%emt 0:01:00]} (40... Nxe5 $2 {loses.} 41. Rc8+ Kh7 42. Nf6+ Kg6 43. Nxd5 $18) 41. Qh3 {[%emt 0:01:16]} Nxe5 {[%emt 0:01:34]} 42. Kg1 {[%emt 0:00:01]} Nf3+ {[%emt 0:01:11]} 43. Kf1 {[%emt 0:00:01]} Qg5 {[%emt 0:00:54] Weighted Error Value: White=0.92/Black=0.11 (very precise) .  Loses game:     	White=1     	---        Mistake:       	White=3     	Black=2      Inaccurate:     	White=4     	Black=2      OK:         	White=8     	Black=9      Best:        	White=1     	---} 0-1

[Event "7th Sharjah Challengers 2024"]
[Site "Sharjah"]
[Date "2024.05.17"]
[Round "4.9"]
[White "Rios Gomez, Cristhian Camilo"]
[Black "George Micheal, Kevin"]
[Result "1-0"]
[ECO "A48"]
[WhiteElo "2472"]
[BlackElo "2263"]
[Annotator "TA"]
[PlyCount "135"]
[EventDate "2024.05.13"]
[EventType "swiss"]
[EventCountry "UAE"]
[SourceTitle "playchess.com"]
[Source "ChessBase"]
[SourceQuality "1"]
[TimeControl "5400+30"]

{[%evp 51,135,397,421,415,404,391,418,414,412,408,391,293,351,337,356,355,347,300,295,304,299,291,317,311,303,283,299,292,306,307,347,332,349,325,343,304,327,322,320,312,312,314,360,353,339,232,349,295,389,367,376,360,449,447,488,485,485,500,578,577,1288,741,2132,792,795,771,1100,1082,946,779,1200,1123,29980,29981,29981,29982,29979,29978,29977,11873,29988,29989,29990,29988,29987,29979]} 1. d4 {[%emt 0:00:36]} Nf6 {[%emt 0:01:08]} 2. Bf4 {[%emt 0:00:10]} g6 {[%emt 0:01:44]} 3. Nf3 {[%emt 0:00:41]} Bg7 {[%emt 0:00:25]} 4. e3 {[%emt 0:00:30]} d6 {[%emt 0:01:05]} 5. h3 {[%emt 0:00:11]} O-O {[%emt 0:00:06]} 6. Be2 {[%emt 0:00:07]} Nbd7 {[%emt 0:03:12]} 7. Bh2 {[%emt 0:00:15]} Qe8 {[%emt 0:01:52]} 8. c4 {[%emt 0:01:18]} e5 {[%emt 0:00:09]} 9. Nc3 {[%emt 0:00:16]} Qe7 {[%emt 0:02:03]} 10. O-O {[%emt 0:00:31]} Re8 {[%emt 0:03:46]} 11. c5 {[%emt 0:05:13] A48: 1 d4 Nf6 2 Nf3 g6: Torre, London and Colle Systems.} Rd8 $146 {[%emt 0:13:32]} ({Predecessor:} 11... a6 12. Re1 e4 13. cxd6 cxd6 14. Nd2 d5 15. a4 b6 16. Qb3 Bb7 17. Qa3 Qe6 18. Qd6 Rac8 {½-½ Ernst,M (2169)-Groetz,H (2312) AUT-chT2O 1920 2019 (1.4)}) 12. Qc2 {[%emt 0:04:24]} exd4 {[%emt 0:02:07]} 13. cxd6 {[%emt 0:00:14]} cxd6 {[%emt 0:00:10]} 14. Nxd4 {[%emt 0:00:09]} Nc5 {[%emt 0:03:34]} 15. Rac1 {[%emt 0:04:55]} Ne6 {[%emt 0:07:17]} 16. Rfd1 {[%emt 0:10:47]} a6 {[%emt 0:12:54]} 17. Nb3 {[%emt 0:07:03]} Ng5 {[%emt 0:05:14]} 18. Na5 {[%emt 0:00:26]} Nfe4 {[%emt 0:14:28]} 19. Nd5 {[%emt 0:08:54]} Nxh3+ {[%emt 0:02:12]} 20. Kf1 {[%emt 0:00:09]} Qh4 {[%emt 0:03:17]} 21. g3 {[%emt 0:00:24]} Qh6 {[%emt 0:01:44]} 22. Qxe4 {[%emt 0:00:19]} Nxf2 {[%emt 0:00:07]} 23. Kxf2 {[%emt 0:03:08]} Qxh2+ {[%emt 0:00:05]} 24. Qg2 {[%emt 0:00:12]} Qh6 {[%emt 0:01:23]} 25. Ne7+ {[%emt 0:01:19]} Kh8 {[%emt 0:01:31]} 26. Nxc8 {[%emt 0:00:59]} (26. Nxb7 Bxb7 $18) 26... Rdxc8 {[%emt 0:01:45]} 27. Rxc8+ {[%emt 0:00:59]} (27. Qxb7 Rcb8 28. Qg2 (28. Qxf7 $2 Rf8 $19) 28... Kg8 $18) (27. Nxb7 Re8 28. Nxd6 (28. Rxd6 $2 Qxe3+ 29. Kf1 Qxc1+ $19) 28... Qxe3+ 29. Ke1 Rf8 $18) 27... Rxc8 {[%emt 0:00:03]} 28. Rh1 {[%emt 0:00:15]} (28. Qxb7 Qh2+ 29. Qg2 Qxg2+ 30. Kxg2 Rc2 $18) (28. Nxb7 Re8 29. Qf3 (29. Nxd6 Qxe3+ 30. Kf1 Rf8 $18) 29... Qh2+ 30. Kf1 Be5 31. Nxd6 (31. Bxa6 Re6 $11) 31... Rf8) (28. Rxd6 b5 29. Rxa6 Rc2 $18) 28... Qg5 {[%emt 0:00:54]} 29. Qh3 {[%emt 0:00:11]} (29. Nxb7 Re8 30. Qf3 (30. Bxa6 $2 Qxe3+ 31. Kf1 Qe1#) 30... Re6 $18) 29... Qf5+ {[%emt 0:00:19]} 30. Qxf5 {[%emt 0:00:26]} gxf5 {[%emt 0:00:03]} 31. Bd3 {[%emt 0:00:18]} Bxb2 {[%emt 0:01:37]} 32. Nxb7 {[%emt 0:00:18]} Rc7 {[%emt 0:01:58]} 33. Na5 {[%emt 0:01:13]} (33. Nxd6 Rd7 $18) 33... Rc3 {[%emt 0:02:49]} 34. Bxf5 {[%emt 0:02:29]} Bc1 {[%emt 0:01:37]} 35. Bxh7 {[%emt 0:01:41]} Bxe3+ {[%emt 0:00:26]} 36. Ke2 {[%emt 0:00:09]} Bd4 {[%emt 0:01:55]} 37. Bd3+ {[%emt 0:00:15]} Kg7 {[%emt 0:00:25]} 38. Nb3 {[%emt 0:00:36]} (38. Bxa6 $6 Ra3 $18) 38... Be5 {[%emt 0:00:08]} 39. g4 {[%emt 0:00:28]} Rc8 {[%emt 0:02:33]} 40. Na5 {[%emt 0:01:43]} (40. Bxa6 Rc2+ 41. Kf1 Rxa2) 40... d5 {[%emt 0:03:08]} 41. Rh7+ {[%emt 0:03:10]} (41. Bxa6 Ra8 $11) 41... Kf6 {[%emt 0:00:47]} 42. Rh6+ {[%emt 0:00:33]} (42. Bxa6 Rc2+ 43. Kd1 Rxa2 $18) 42... Kg5 {[%emt 0:00:06]} 43. Rxa6 {[%emt 0:00:47]} Kxg4 {[%emt 0:00:17]} 44. Nc6 {[%emt 0:00:06]} Bd6 {[%emt 0:01:33]} 45. a4 {[%emt 0:00:21]} Kf4 {[%emt 0:01:01]} 46. Kd2 {[%emt 0:04:27]} f5 {[%emt 0:00:49]} 47. Nd4 {[%emt 0:01:11]} Bb4+ {[%emt 0:00:28]} 48. Ke2 {[%emt 0:00:01]} Re8+ {[%emt 0:01:15]} (48... Rh8 $142 49. Re6 (49. Bxf5 Rh2+ 50. Kf1 Rd2 $16) 49... Rh2+ 50. Kf1 Ra2) 49. Re6 {[%emt 0:01:20]} Rg8 {[%emt 0:01:33]} 50. Kd1 {[%emt 0:01:00]} ({Not} 50. Nxf5 Rg2+ 51. Kf1 Rd2 $14) 50... Bc5 {[%emt 0:01:42]} 51. Ne2+ {[%emt 0:00:32]} ({Don't take} 51. Nxf5 Ra8 52. Bc2 d4 53. Re4+ Kg5 54. Nxd4 Bb6 55. Re5+ Kf4 $18) 51... Kf3 {[%emt 0:00:30]} 52. Bxf5 {[%emt 0:01:00]} Ra8 {[%emt 0:01:08]} 53. Bc2 {[%emt 0:00:11]} Rh8 {[%emt 0:00:26]} 54. Kd2 {[%emt 0:01:26]} Bb4+ {[%emt 0:00:38]} 55. Kd3 {[%emt 0:00:09]} Rh2 {[%emt 0:00:15]} 56. Bb3 {[%emt 0:00:26]} Rh5 {[%emt 0:00:33]} 57. Nc3 {[%emt 0:00:42]} Rh8 {[%emt 0:00:42]} 58. Nxd5 {[%emt 0:00:10]} Ba5 {[%emt 0:00:09]} 59. Ra6 {[%emt 0:00:23]} Be1 {[%emt 0:00:11]} 60. a5 {[%emt 0:00:42]} Rh3 {[%emt 0:01:02]} 61. Rf6+ {[%emt 0:02:01]} Kg4+ {[%emt 0:00:37]} 62. Ne3+ {[%emt 0:00:09]} Kg5 {[%emt 0:00:04]} 63. Rf5+ {[%emt 0:00:27]} Kg6 {[%emt 0:00:32]} 64. a6 {[%emt 0:00:15]} Rh8 {[%emt 0:00:06]} 65. Bd5 {[%emt 0:00:18]} Rh7 {[%emt 0:00:56]} 66. Bf7+ {[%emt 0:00:11]} Kg7 {[%emt 0:00:14]} 67. a7 {[%emt 0:00:07]} Rh8 {[%emt 0:00:01]} 68. Bd5 {[%emt 0:00:09]} 1-0

[Event "7th Sharjah Challengers 2024"]
[Site "Sharjah"]
[Date "2024.05.17"]
[Round "4.10"]
[White "Nitish Belurkar"]
[Black "Devnani Kush"]
[Result "1-0"]
[ECO "B23"]
[WhiteElo "2451"]
[BlackElo "2250"]
[Annotator "TA"]
[PlyCount "99"]
[EventDate "2024.05.13"]
[EventType "swiss"]
[EventCountry "UAE"]
[SourceTitle "playchess.com"]
[Source "ChessBase"]
[SourceQuality "1"]
[TimeControl "5400+30"]

{[%evp 9,99,9,0,0,16,-8,-13,0,0,-6,0,-19,-24,-22,-10,-12,-17,-20,-18,-30,16,10,11,10,21,20,28,18,19,10,12,4,7,5,10,8,13,13,26,12,12,12,52,48,39,49,263,256,454,456,460,453,432,416,426,372,377,410,415,409,423,412,423,412,479,412,476,429,401,0,0,0,12,0,0,0,0,0,0,39,591,591,1391,1347,3397,2264,29967,29968,29982,29983,29981,29979]} 1. e4 {[%emt 0:00:03]} c5 {[%emt 0:00:34]} 2. Nc3 {[%emt 0:00:06]} d6 {[%emt 0:00:07]} 3. f4 {[%emt 0:00:05]} g6 {[%emt 0:00:17]} 4. Nf3 {[%emt 0:00:08]} Bg7 {[%emt 0:00:07]} 5. Bb5+ {[%emt 0:02:32]} Bd7 {[%emt 0:00:06]} 6. a4 {[%emt 0:00:38]} e6 {[%emt 0:14:32]} 7. d3 {[%emt 0:05:06][%cal Of4f5]} Nc6 {[%emt 0:03:10]} 8. O-O {[%emt 0:03:38][%cal Of4f5] The position is equal.} Nge7 {[%emt 0:06:08]} 9. Be3 {[%emt 0:12:40]} Nd4 {[%emt 0:16:56]} 10. Bxd7+ {[%emt 0:09:03]} Qxd7 {[%emt 0:00:31]} 11. Bxd4 {[%emt 0:00:07]} cxd4 {[%emt 0:01:28]} 12. Ne2 {[%emt 0:00:03]} Nc6 {[%emt 0:13:48]} 13. c3 {[%emt 0:15:14]} dxc3 {[%emt 0:01:19]} 14. bxc3 {[%emt 0:00:02]} f5 {[%emt 0:09:16]} (14... b6 $142) 15. exf5 {[%emt 0:10:06]} exf5 {[%emt 0:01:34]} 16. Rb1 {[%emt 0:04:09]} b6 {[%emt 0:03:50]} 17. Qb3 {[%emt 0:09:37]} d5 {[%emt 0:04:56]} 18. Qa3 {[%emt 0:00:31]} Qe7 {[%emt 0:01:12]} 19. Qa2 {[%emt 0:00:41]} Rd8 {[%emt 0:02:01]} 20. Rfe1 {[%emt 0:11:49]} O-O $1 {[%emt 0:01:26]} 21. Ned4 {[%emt 0:00:19]} Bxd4+ {[%emt 0:00:06]} 22. cxd4 {[%emt 0:00:03]} Qd6 {[%emt 0:01:14]} 23. g3 {[%emt 0:00:32]} Rfe8 {[%emt 0:02:02]} 24. Qb2 {[%emt 0:03:30]} Rxe1+ {[%emt 0:00:57]} 25. Rxe1 {[%emt 0:00:01]} Nb4 {[%emt 0:02:33]} 26. Ne5 {[%emt 0:03:43]} a5 {[%emt 0:02:39]} 27. Rc1 {[%emt 0:01:09]} b5 $2 {[%emt 0:06:13]} 28. axb5 $18 {[%emt 0:00:40] aiming for Rc5.} Qb6 {[%emt 0:02:06]} (28... Rb8 {was called for.} 29. Qb3 Kg7) 29. Rc5 {[%emt 0:00:45]} Re8 {[%emt 0:02:38]} 30. Qc3 {[%emt 0:00:34] [#] Rc8 is the strong threat.} Na2 {[%emt 0:00:28]} 31. Qb3 {[%emt 0:00:19]} Nb4 {[%emt 0:00:05]} 32. h4 {[%emt 0:01:28]} Kg7 {[%emt 0:00:41]} 33. Qc3 {[%emt 0:00:10]} Re7 {[%emt 0:00:13] Inhibits Rc7.} 34. Kh2 {[%emt 0:00:18]} Na2 {[%emt 0:00:28]} 35. Qd2 {[%emt 0:00:40]} Nb4 {[%emt 0:00:04]} 36. Kh3 {[%emt 0:00:03]} Rb7 {[%emt 0:02:08]} 37. Qc3 {[%emt 0:00:50]} Na2 {[%emt 0:00:08]} 38. Qe1 {[%emt 0:00:08]} Nb4 {[%emt 0:00:35]} 39. Nc6 {[%emt 0:01:01] Wards off Re7} (39. h5 $18) 39... Nxd3 $11 {[%emt 0:00:22]} 40. Qa1 {[%emt 0:00:38]} (40. Qxa5 $2 Qxa5 (40... Nxc5 $2 41. Qxb6 Rxb6 42. dxc5 $19) 41. Nxa5 Nxc5 42. Nxb7 Nxb7 $19) (40. Qc3 $5 Nf2+ $8 41. Kh2 $11) 40... Qc7 {[%emt 0:00:57]} 41. Qc3 {[%emt 0:05:05]} Nf2+ {[%emt 0:00:23]} 42. Kg2 {[%emt 0:00:01]} Ne4 $1 {[%emt 0:00:03][%csl LRc3,LRc5]} 43. Qb3 {[%emt 0:00:25]} Nxc5 {[%emt 0:00:52]} 44. dxc5 {[%emt 0:00:01][%cal Bd4c5,Bc5c6,Bc6c7][%mdl 4128] Endgame. KQR-KQN} Qd7 $2 {[%emt 0:00:15][%mdl 8192]} (44... Qxc6 $2 45. bxc6 Rxb3 46. c7 $18) (44... Kh6 $1 $14) 45. Qc3+ $18 {[%emt 0:00:17]} Kg8 {[%emt 0:00:30] [#]} 46. Nd4 {[%emt 0:00:26]} (46. Qxa5 d4 47. h5 Qd5+ 48. Kh2 Kg7 $11) 46... Qe7 {[%emt 0:00:59]} 47. c6 {[%emt 0:00:10]} (47. Qxa5 Ra7 (47... Qe4+ 48. Kh2 $11) 48. Qd2 (48. Qc3 $2 Qe4+ 49. Qf3 Qxd4 $19) 48... Qe4+ (48... Qxc5 $2 49. Kh3 $19) 49. Nf3 Ra3 $19) 47... Qe4+ {[%emt 0:00:17]} 48. Kh2 {[%emt 0:01:41] White mates.} Re7 {[%emt 0:00:25]} 49. b6 {[%emt 0:00:20]} ({Stronger than} 49. c7 Rxc7 50. Qxc7 Qxd4 $11) 49... Qb1 {[%emt 0:00:49]} 50. c7 {[%emt 0:00:06] Weighted Error Value: White=0.19 (very precise) /Black=0.48.  Loses game:     	---       	Black=2      Missed win:     	White=1     	---        Mistake:       	---       	Black=2      Inaccurate:     	---       	Black=4      OK:         	White=17    	Black=16     Best:        	White=1     	Black=2      Strong:       	---       	Black=1} ({Worse is} 50. Qxa5 Qb2+ 51. Kh3 Qxd4 $11) 1-0

[Event "7th Sharjah Challengers 2024"]
[Site "Sharjah"]
[Date "2024.05.17"]
[Round "4.11"]
[White "Jaiveer Mahendru"]
[Black "Mohammad Fahad, Rahman"]
[Result "0-1"]
[ECO "C54"]
[WhiteElo "2243"]
[BlackElo "2435"]
[Annotator "TA"]
[PlyCount "52"]
[EventDate "2024.05.13"]
[EventType "swiss"]
[EventCountry "UAE"]
[SourceTitle "playchess.com"]
[Source "ChessBase"]
[SourceQuality "1"]
[TimeControl "5400+30"]

{[%evp 12,52,13,10,14,10,12,9,21,-75,-67,-64,-62,-84,-41,-45,-30,-31,-13,-21,-16,-21,14,26,21,29,30,26,15,0,0,-57,-65,-252,-258,-352,-362,-310,-351,-357,-368,-468,-458]} 1. e4 {[%emt 0:00:02]} e5 {[%emt 0:00:20]} 2. Nf3 {[%emt 0:00:04]} Nc6 {[%emt 0:00:25]} 3. Bc4 {[%emt 0:00:05]} Nf6 {[%emt 0:01:24]} 4. d3 {[%emt 0:01:07]} Bc5 {[%emt 0:00:23]} 5. c3 {[%emt 0:00:34]} O-O {[%emt 0:00:12]} 6. O-O {[%emt 0:02:54]} d6 {[%emt 0:00:47]} 7. Re1 {[%emt 0:05:15]} a5 {[%emt 0:00:38]} 8. Nbd2 {[%emt 0:01:23]} Be6 {[%emt 0:02:10]} 9. a4 {[%emt 0:00:32]} Ba7 {[%emt 0:02:21] The position is equal.} 10. Nf1 {[%emt 0:00:18] [#]} (10. Qb3 $11) 10... Nxe4 $1 $17 {[%emt 0:02:01]} 11. Rxe4 {[%emt 0:00:27] Hoping for Bxe6.} d5 {[%emt 0:00:12]} 12. Bxd5 {[%emt 0:00:04]} Bxd5 {[%emt 0:15:22]} 13. Re1 {[%emt 0:00:55]} Qd6 {[%emt 0:08:14]} 14. Be3 {[%emt 0:09:57]} Rfd8 {[%emt 0:09:30]} 15. Bxa7 {[%emt 0:01:10]} Rxa7 {[%emt 0:00:08]} 16. Ne3 {[%emt 0:09:20]} f6 {[%emt 0:02:02]} 17. d4 {[%emt 0:07:23]} Bxf3 {[%emt 0:05:51]} 18. Qxf3 {[%emt 0:00:16]} exd4 {[%emt 0:00:13] ...Ne5 is the strong threat.} 19. Nf5 {[%emt 0:00:51]} Qd7 {[%emt 0:12:10]} 20. cxd4 {[%emt 0:18:56]} Ra6 {[%emt 0:01:05][%cal Og7g6]} 21. Re4 {[%emt 0:31:37]} ({White should play} 21. Rad1 $11) 21... g6 $1 $15 {[%emt 0:02:27]} 22. Ne3 {[%emt 0:00:23] [#] This move loses the game for White.} ({White should try} 22. Nh6+ $15 Kg7 23. Rae1) 22... f5 $1 $19 {[%emt 0:00:47]} (22... Nxd4 $2 {perishes.} 23. Rxd4 Qxd4 24. Rd1 $18 (24. Qxb7 $2 Qb6 $19)) 23. Rf4 {[%emt 0:00:38]} Nxd4 {[%emt 0:01:35]} 24. Rxd4 {[%emt 0:06:46]} ({Reject} 24. Qxb7 Rb6 25. Rxd4 Rxb7) 24... Qxd4 {[%emt 0:01:33]} 25. Rd1 {[%emt 0:00:06]} Qf6 {[%emt 0:00:30]} 26. Nd5 {[%emt 0:01:01]} Qf7 {[%emt 0:02:56] Weighted Error Value: White=0.40/Black=0.06 (flawless) .  Loses game:     	White=1     	---        Mistake:       	White=2     	---        Inaccurate:     	White=1     	Black=2      OK:         	White=7     	Black=3      Best:        	---       	Black=2      Strong:       	---       	Black=2      Brilliant:      	---       	Black=1} ({Less strong is} 26... Qxb2 27. Ne7+ Kf7 28. Rxd8 Kxe7 29. Qd1 $19) 0-1

[Event "7th Sharjah Challengers 2024"]
[Site "Sharjah"]
[Date "2024.05.17"]
[Round "4.12"]
[White "Kazarian, Anna-Maja"]
[Black "Nofal, Mohamed"]
[Result "1/2-1/2"]
[ECO "C78"]
[WhiteElo "2182"]
[BlackElo "1962"]
[Annotator "RC"]
[PlyCount "78"]
[EventDate "2024.05.13"]
[EventType "swiss"]
[EventCountry "UAE"]
[SourceTitle "playchess.com"]
[Source "ChessBase"]
[SourceQuality "1"]
[TimeControl "5400+30"]

1. e4 {[%emt 0:00:02]} e5 {[%emt 0:01:50]} 2. Nf3 {[%emt 0:00:05]} Nc6 {[%emt 0:00:05]} 3. Bb5 {[%emt 0:00:04]} a6 {[%emt 0:00:06]} 4. Ba4 {[%emt 0:00:03]} Nf6 {[%emt 0:00:07]} 5. d3 {[%emt 0:00:09]} b5 {[%emt 0:00:32]} 6. Bb3 {[%emt 0:00:07]} Bc5 {[%emt 0:00:03]} 7. c3 {[%emt 0:00:18]} d6 {[%emt 0:00:25]} 8. O-O {[%emt 0:00:29]} h6 {[%emt 0:00:29]} 9. Nbd2 {[%emt 0:02:59]} O-O {[%emt 0:00:30]} 10. h3 {[%emt 0:00:31]} Re8 {[%emt 0:00:14]} 11. Re1 {[%emt 0:00:14]} Bb6 {[%emt 0:00:15]} 12. Nf1 {[%emt 0:03:44]} Be6 {[%emt 0:01:32]} 13. Bc2 {[%emt 0:10:26]} d5 {[%emt 0:05:37]} 14. exd5 {[%emt 0:00:34]} Qxd5 {[%emt 0:00:11]} 15. Ng3 {[%emt 0:06:20]} Rad8 {[%emt 0:03:36]} 16. Qe2 {[%emt 0:06:42]} Qd7 {[%emt 0:01:38]} 17. Be3 {[%emt 0:15:52]} Bxe3 {[%emt 0:04:35]} 18. fxe3 {[%emt 0:00:46]} Qd6 {[%emt 0:06:29]} 19. e4 {[%emt 0:03:45]} Ne7 {[%emt 0:05:28]} 20. Qf2 {[%emt 0:06:31]} c5 {[%emt 0:04:02]} 21. d4 {[%emt 0:05:03]} cxd4 {[%emt 0:00:14]} 22. cxd4 {[%emt 0:00:04]} Ng6 {[%emt 0:00:17]} 23. Rad1 {[%emt 0:08:43]} Qb4 {[%emt 0:08:21]} 24. d5 {[%emt 0:10:23]} Bc8 {[%emt 0:01:21]} 25. Bb3 {[%emt 0:01:30]} a5 {[%emt 0:02:56]} 26. Rd2 {[%emt 0:07:48]} a4 {[%emt 0:05:35]} 27. Bd1 {[%emt 0:00:11]} Bd7 {[%emt 0:02:21]} 28. a3 {[%emt 0:03:37]} Qd6 {[%emt 0:00:37]} 29. Rc2 {[%emt 0:01:50]} Rc8 {[%emt 0:00:19]} 30. Rxc8 {[%emt 0:01:23]} Rxc8 {[%emt 0:00:32]} 31. Nf5 {[%emt 0:01:09]} Bxf5 {[%emt 0:02:44]} 32. exf5 {[%emt 0:00:03]} Ne7 {[%emt 0:00:05]} 33. Rxe5 {[%emt 0:02:44]} Nexd5 {[%emt 0:00:20]} 34. Qd4 {[%emt 0:01:19]} Rc4 {[%emt 0:02:05]} 35. Qd2 {[%emt 0:01:26]} Qc5+ {[%emt 0:01:47]} 36. Kh2 {[%emt 0:00:10]} Qc7 {[%emt 0:02:03]} 37. Kg1 {[%emt 0:00:57]} Qc5+ {[%emt 0:00:22]} 38. Kh2 {[%emt 0:00:08]} Qc7 {[%emt 0:00:07]} 39. Kg1 {[%emt 0:01:05]} Qc5+ {[%emt 0:00:26]} 1/2-1/2